Cogmind - Beta 9.2 @@@ ROGUE MODE // 2019.11.28 @ 01:51:57 Player: Fleshy Vegetable Bird Result: Destroyed by S-27 Virus with Autogun Performance ------------- Evolutions (4) 2000 Regions Visited (15) 3000 Robots Destroyed (137) 685 Value Destroyed (6121) 6121 Prototype IDs (3) 60 Alien Tech Used (0) 0 Bonus (2949) 2949 TOTAL SCORE: 14815 Bonus ------- High Alert Combat Kills 358 Follower Combat Kills 404 Entered Garrisons 1000 Used RIF Installer 2000 Friendly Fire -813 Cogmind --------- Core Integrity 0/850 Matter 225/300 Energy 100/100 System Corruption 0% Temperature Cool (0) Movement Core (50) Location -6/Garrison Parts ------- > --- POWER (2) -------- (None) > --- PROPULSION (5) --- (None) > --- UTILITY (6) ------ Relay Coupler [Sentry] (22) > --- WEAPON (2) ------- (None) > --- INVENTORY (4) ---- Hacking Suite Relay Coupler [NC] (29) Heavy Rocket Launcher Peak State ------------ > --- POWER ------------ Light Nuclear Core Light Nuclear Core > --- PROPULSION ------- Gravmag System Gravmag System > --- UTILITY ---------- High-capacity Storage Unit High-capacity Storage Unit Advanced Sensor Array Relay Coupler [Grunt] Relay Coupler [Sentry] Relay Coupler [Sentry] > --- WEAPON ----------- Heavy Assault Rifle Remote Datajack > --- INVENTORY -------- Deuterium Engine Advanced Terrain Scanner Improved Terrain Scan Processor Improved Light Armor Plating Improved Light Armor Plating Hacking Suite Hacking Suite Relay Coupler [NC] Relay Coupler [NC] Relay Coupler [ARC] Relay Coupler [Grunt] Relay Coupler [Sentry] Relay Coupler [Demolisher] Relay Coupler [Specialist] Shock Rifle Shock Rifle Heavy Ion Cannon Gauss Rifle Heavy Rocket Launcher [Rating: 42] Favorites ----------- Power Improved Ion Engine Engine Improved Ion Engine Power Core Light Nuclear Core Propulsion Light Treads Treads Light Treads Wheel Wheel Hover Unit Gravmag System Utility High-capacity Storage Unit Device Advanced Sensor Array Storage High-capacity Storage Unit Processor Advanced Signal Interpreter Hackware Relay Coupler [Sentry] Protection Light Armor Plating Weapon Shotgun Energy Gun Advanced Beam Rifle Energy Cannon EM Pulse Cannon Ballistic Gun Shotgun Launcher Rocket Launcher Special Weapon Remote Datajack Impact Weapon Hammer Slashing Weapon Greatsword Build | -11 -10 -9 -9 -9 -8 -8 -8 -8 -8 -7 -7 -7 -7 -6 -6 ------- Run | Scr Mat Mat Min Exi Min Mat Gar Mat Gar Fac Gar Fac Gar Fac Gar Slots Evolved 8 | . . 2 . . . 2 . . . 2 . . . 2 . Power 1 | . . . . . . . . . . . . . . 1 . Propulsion 3 | . . 1 . . . 1 . . . . . . . 1 . Utility 4 | . . 1 . . . 1 . . . 2 . . . . . Weapon . | . . . . . . . . . . . . . . . . Parts Attached 153 | 7 7 10 5 1 4 13 5 12 9 2 18 34 17 1 8 Power 13 | 1 1 1 . . 1 2 1 . 1 . 2 1 1 1 . Engine 8 | 1 1 1 . . 1 1 . . 1 . 1 1 . . . Core 5 | . . . . . . 1 1 . . . 1 . 1 1 . Reactor . | . . . . . . . . . . . . . . . . Propulsion 53 | 3 . 6 3 . 1 4 1 4 4 1 8 14 4 . . Treads 29 | . . 4 3 . 1 1 1 2 2 . 7 8 . . . Leg . | . . . . . . . . . . . . . . . . Wheel 22 | 3 . 2 . . . 3 . 2 2 1 1 6 2 . . Hover 2 | . . . . . . . . . . . . . 2 . . Flight . | . . . . . . . . . . . . . . . . Utility 41 | 2 3 2 1 1 . 2 1 2 . 1 3 13 7 . 3 Device 3 | . . . . . . . . . . . . 2 1 . . Storage 10 | 2 3 . . 1 . . . . . 1 . 3 . . . Processor 1 | . . . . . . . . . . . . 1 . . . Hackware 12 | . . . . . . . . . . . . 3 6 . 3 Protection 15 | . . 2 1 . . 2 1 2 . . 3 4 . . . Artifact . | . . . . . . . . . . . . . . . . Weapon 46 | 1 3 1 1 . 2 5 2 6 4 . 5 6 5 . 5 Energy Gun 11 | 1 1 . 1 . . 1 . 2 2 . 1 . . . 2 Energy Cannon 5 | . . . . . . . . . 1 . 2 . 1 . 1 Ballistic Gun 14 | . 1 1 . . 2 2 1 3 . . 1 1 1 . 1 Ballistic Cannon . | . . . . . . . . . . . . . . . . Launcher 5 | . . . . . . 1 1 1 1 . 1 . . . . Special Weapon 7 | . . . . . . 1 . . . . . 3 2 . 1 Impact Weapon 1 | . 1 . . . . . . . . . . . . . . Slashing Weapon 3 | . . . . . . . . . . . . 2 1 . . Piercing Weapon . | . . . . . . . . . . . . . . . . Special Melee Weapon . | . . . . . . . . . . . . . . . . Unidentified Prototypes 1 | . . . . . . . . 1 . . . . . . . Parts Lost 59 | . . 6 1 . 4 7 1 6 2 . 10 5 7 . 10 Power 9 | . . 1 . . 1 3 . . . . 2 . 1 . 1 Propulsion 21 | . . 3 . . 1 3 . 2 1 . 3 4 4 . . Utility 12 | . . 1 . . . . 1 2 . . 3 . . . 5 Weapon 17 | . . 1 1 . 2 1 . 2 1 . 2 1 2 . 4 Highest Loss Streak 7 | . . 3 1 . 3 3 1 2 1 . 4 3 7 . 6 Average Slot Usage (%) 92 | . 89 95 98 100 99 96 99 99 99 84 84 95 76 80 46 Engine 6 | . 13 10 11 11 10 3 . . 5 7 5 7 1 . . Core 2 | . . . . . . 4 8 9 3 . 1 . 4 13 5 Treads 20 | . . 20 33 33 33 17 17 17 18 7 28 27 5 . . Wheel 7 | . 28 11 . . . 18 18 17 18 23 1 2 1 . . Hover 1 | . . . . . . . . . . . . . 10 13 2 Device 1 | . . . . . . . . . . . . 4 4 6 2 Storage 24 | . 28 22 22 31 33 27 27 27 27 23 23 24 17 13 7 Hackware 3 | . . . . . . . . . . . . 2 20 20 20 Protection 6 | . . 7 11 1 . 8 9 8 9 7 7 8 . . . Energy Gun 4 | . 13 1 8 11 3 3 7 2 4 7 7 3 . . . Energy Cannon 1 | . . . . . . . . . 6 7 1 . 1 . . Ballistic Gun 8 | . 4 20 12 11 18 11 4 14 2 . 2 5 4 6 2 Launcher 1 | . . . . . . 1 5 . 4 . 2 . . . . Naked Turns . | . . . . . . . . . . . . . . . . Heaviest Build 147 | 13 71 77 78 107 109 112 113 119 123 121 137 147 113 81 81 Greatest Support 83 | 26 20 60 60 60 60 40 20 40 40 30 83 83 82 22 22 Greatest Overweight (x) 33 | . 3 3 1 1 1 5 5 11 6 4 4 11 33 3 26 Average Overweight (x) 2 | . 2 1 1 1 1 3 5 5 4 4 1 1 3 3 . Largest Inventory Capacity 36 | 8 20 20 20 28 28 28 28 28 28 36 28 36 28 20 20 Average Capacity 25 | 6 17 20 20 26 28 28 28 28 28 28 28 29 22 20 12 Most Carried 31 | 6 13 20 20 23 27 28 25 28 28 28 28 31 28 19 19 Average Carried 22 | 4 9 16 19 22 24 25 20 25 26 27 24 27 21 19 11 Final Capacity 28 | 8 20 20 20 28 28 28 28 28 28 28 28 28 20 20 4 Final Carried 28 | 6 11 18 20 23 25 25 22 27 28 28 25 26 20 19 3 Class Distribution -------------------- 53% | Hauler-Mutant 27% | Bothacker-Mutant 11% | Botlord-Mutant 4% | Scavenger-Mutant 3% | Mutant Dominant Class ---------------- Hauler-Mutant | -10/Materials Hauler-Mutant | -9/Materials Hauler-Mutant | -9/Mines Hauler-Mutant | -9/Exiles Hauler-Mutant | -8/Mines Scavenger-Mutant | -8/Materials Hauler-Mutant | -8/Garrison Hauler-Mutant | -8/Materials Hauler-Mutant | -8/Garrison Bothacker-Mutant | -7/Factory Bothacker-Mutant | -7/Garrison Bothacker-Mutant | -7/Factory Botlord-Mutant | -7/Garrison Botlord-Mutant | -6/Factory Mutant | -6/Garrison Resources | -11 -10 -9 -9 -9 -8 -8 -8 -8 -8 -7 -7 -7 -7 -6 -6 ----------- Run | Scr Mat Mat Min Exi Min Mat Gar Mat Gar Fac Gar Fac Gar Fac Gar Matter Collected 3440 | 268 43 402 98 . 348 219 202 420 281 . 379 348 432 . . Remotely . | . . . . . . . . . . . . . . . . Salvage Created 5114 | 141 251 575 58 . 560 715 231 628 432 . 867 484 172 . . Parts 284 | 5 18 34 8 . 39 41 13 28 32 . 35 27 4 . . Haulers Intercepted 2 | . 1 . . . . . . 1 . . . . . . . Recyclers Shooed 2 | 1 . 1 . . . . . . . . . . . . . Parts Field Recycled . | . . . . . . . . . . . . . . . . Retrieved Matter . | . . . . . . . . . . . . . . . . Parts Self-Destructed . | . . . . . . . . . . . . . . . . Prevented . | . . . . . . . . . . . . . . . . Kills | -11 -10 -9 -9 -9 -8 -8 -8 -8 -8 -7 -7 -7 -7 -6 -6 ------- Run | Scr Mat Mat Min Exi Min Mat Gar Mat Gar Fac Gar Fac Gar Fac Gar Combat Hostiles Destroyed 115 | . 3 12 2 . 16 17 6 12 15 . 22 7 3 . . Melee 5 | . . . . . . . . . . . . 4 1 . . Guns 65 | . 1 12 2 . 16 7 3 10 3 . 8 3 . . . Cannons 8 | . . . . . . . . . 4 . 2 . 2 . . AOE 34 | . 2 . . . . 8 3 1 8 . 12 . . . . Classes Destroyed 14 | 2 6 1 1 . 2 . . 1 . . 1 . . . . Worker 4 | . 1 . . . . . . 1 . . . 2 . . . Builder 2 | . 1 . . . 1 . . . . . . . . . . Tunneler 4 | 2 . . 1 . 1 . . . . . . . . . . Hauler 2 | . 1 . . . . . . 1 . . . . . . . Recycler 1 | 1 . . . . . . . . . . . . . . . Operator 5 | . 1 2 . . . . . . . . . 2 . . . Watcher 2 | . 1 . . . . . . 1 . . . . . . . Swarmer 33 | . . . 2 . 7 4 3 2 7 . 3 1 4 . . Grunt 53 | . 3 6 . . 7 9 2 6 5 . 13 2 . . . Brawler 4 | . . . . . 1 1 1 . . . 1 . . . . Duelist 3 | . . . . . . . . 1 1 . 1 . . . . Sentry 20 | . . 6 . . . 3 . 2 2 . 3 3 1 . . Hunter 2 | . . . . . 1 . . 1 . . . . . . . Programmer 2 | . . . . . . . . . . . 1 1 . . . Best Kill Streak 10 | 2 3 3 2 . 4 10 3 4 4 . 8 4 2 . . Combat Bots Only 10 | . 3 3 2 . 4 10 3 4 4 . 8 2 2 . . Max Kills in Single Turn 2 | 1 2 1 1 . 2 2 2 1 2 . 2 1 1 . . Gunslinging 1 | . . . . . 1 . . . . . . . . . . Exploded 2 | . 1 . . . . 2 2 1 2 . 2 . . . . Melee 1 | . . . . . . . . . . . . 1 1 . . Uniques/NPCs Destroyed . | . . . . . . . . . . . . . . . . Combat | -11 -10 -9 -9 -9 -8 -8 -8 -8 -8 -7 -7 -7 -7 -6 -6 -------- Run | Scr Mat Mat Min Exi Min Mat Gar Mat Gar Fac Gar Fac Gar Fac Gar Damage Taken 10132 | . 85 940 70 . 766 1068 138 955 414 . 1876 1105 1086 36 1593 Core 2058 | . 53 110 8 . 124 123 32 78 55 . 240 102 275 . 858 Absorbed by Shields 166 | . . . . . . . . . . . 127 . . . 39 Core Remaining (%) 55 | 100 78 . . . 39 . . . 47 . . . 11 . . Volleys Fired 404 | 18 17 50 4 . 47 45 20 59 37 . 45 23 32 . 7 Largest 2 | 1 2 2 2 . 2 2 2 2 2 . 2 2 1 . 2 Hottest 141 | 40 60 60 79 . 79 100 78 68 124 . 141 84 65 . 115 Shots Fired 657 | 18 20 98 8 . 94 73 32 97 53 . 79 39 35 . 11 Gun 534 | 18 20 98 8 . 94 55 24 90 21 . 54 32 13 . 7 Cannon 47 | . . . . . . . . . 20 . 15 . 8 . 4 Launcher 50 | . . . . . . 13 8 7 12 . 10 . . . . Special 26 | . . . . . . 5 . . . . . 7 14 . . Kinetic 370 | . 3 93 7 . 78 44 8 78 1 . 15 28 13 . 2 Thermal 107 | . . . 1 . 16 5 . . 20 . 49 4 8 . 4 Explosive 22 | . . . . . . . . . 12 . 10 . . . . Electromagnetic 137 | 18 17 5 . . . 24 24 19 20 . 5 . . . 5 Robot Hit Streak 24 | 6 2 16 2 . 13 13 10 16 7 . 15 24 5 . 7 Robot Miss Streak 10 | 1 2 3 3 . 4 10 2 5 4 . 3 2 1 . 1 Penetration Max . | . . . . . . . . . . . . . . . . Secondary Targets 3 | . . . . . 2 . . . . . 1 . . . . Max Gunslinging Chain 1 | . . . . . 1 . . . . . 1 . . . . Shots Hit Robots 479 | 14 8 77 3 . 76 51 20 65 27 . 58 50 21 . 9 Core Hits 264 | 3 11 29 3 . 37 40 16 33 23 . 46 16 5 . 2 Critical Hits 4 | . . . . . 1 . . . . . . 2 1 . . Critical Kills 2 | . . . . . 1 . . . . . . 1 . . . Critical Parts Destroyed 2 | . . . . . . . . . . . . 1 1 . . Melee Attacks 33 | . 7 . . . . . . . . . . 21 5 . . Impact 7 | . 7 . . . . . . . . . . . . . . Slashing 26 | . . . . . . . . . . . . 21 5 . . Piercing . | . . . . . . . . . . . . . . . . Sneak Attacks 8 | . . . . . . . . . . . . 4 4 . . Combat Hostiles . | . . . . . . . . . . . . . . . . Follow-up Attacks . | . . . . . . . . . . . . . . . . Damage Inflicted 12829 | 206 359 1017 58 . 983 1303 362 1273 1210 . 3033 1910 875 . 240 Guns 5532 | 206 129 1017 49 . 983 607 189 825 183 . 820 450 . . 74 Cannons 819 | . . . . . . . . . 269 . 266 . 230 . 54 Explosions 4426 | . 230 . . . . 696 173 448 758 . 1947 62 . . 112 Melee 2040 | . . . . . . . . . . . . 1398 642 . . Ramming 12 | . . . 9 . . . . . . . . . 3 . . Kinetic 3563 | . 10 956 35 . 792 514 54 662 . . 170 370 . . . Thermal 1954 | . 64 . 14 . 191 59 . 42 216 . 830 142 230 . 166 Explosive 2672 | . . . . . . . . . 725 . 1947 . . . . Electromagnetic 2588 | 206 285 61 . . . 730 308 569 269 . 86 . . . 74 Impact . | . . . . . . . . . . . . . . . . Slashing 2040 | . . . . . . . . . . . . 1398 642 . . Piercing . | . . . . . . . . . . . . . . . . Highest Corruption 8 | . . . . . . 4 4 5 5 . 4 8 8 . . Average Corruption 5 | . . . . . . 4 4 4 5 . 4 4 8 . . Corruption Purged . | . . . . . . . . . . . . . . . . Effects 148 | . . . . . . 1 7 21 28 . 20 29 42 . . Message Errors 38 | . . . . . . . 3 4 5 . 6 10 10 . . Matter Fused 37 | . . . . . . . 1 4 8 . 5 6 13 . . Heat Flow Errors 14 | . . . . . . . 1 2 2 . 4 2 3 . . Energy Discharges 19 | . . . . . . 1 1 4 2 . 3 3 5 . . Parts Rejected 2 | . . . . . . . . . . . . 2 . . . Data Loss (minor) 12 | . . . . . . . . . 3 . . 3 6 . . Data Loss (major) 2 | . . . . . . . . . 1 . . . 1 . . Misfires 6 | . . . . . . . . . 3 . . . 3 . . Targeting Errors 17 | . . . . . . . 1 6 4 . 2 3 1 . . Weapon Failures 1 | . . . . . . . . 1 . . . . . . . Overload Shots . | . . . . . . . . . . . . . . . . Overflow Damage 735 | . . . . . . 3 . 34 30 . 84 480 98 . 6 Projectiles 3 | . . . . . . . . . . . . . 3 . . Explosions 267 | . . . . . . 3 . 34 30 . 84 110 . . 6 Melee 465 | . . . . . . . . . . . . 370 95 . . Knockbacks . | . . . . . . . . . . . . . . . . Impact . | . . . . . . . . . . . . . . . . Kinetic . | . . . . . . . . . . . . . . . . Secondary . | . . . . . . . . . . . . . . . . Self-Inflicted Damage 485 | . 41 . . . . 57 6 56 83 . . 114 95 . 33 Shots 16 | . 2 . . . . 5 2 2 2 . . 1 1 . 1 Rammed 4 | . . . 1 . . . . . . . . . 3 . . Targets Rammed 4 | . . . 1 . . . . . . . . . 3 . . Kicked . | . . . . . . . . . . . . . . . . Crushed . | . . . . . . . . . . . . . . . . Highest Temperature 526 | . 24 12 18 . 81 36 208 130 416 . 526 168 243 . 60 Average Temperature 77 | . 13 4 8 . 20 12 42 17 94 . 151 45 62 . 26 Received Heat Transfer 2836 | . 24 450 24 . 279 441 54 324 108 . 619 219 276 18 . Effects 5 | . . . . . . . . . 1 . 4 . . . . Shutdowns 1 | . . . . . . . . . 1 . . . . . . Interference 2 | . . . . . . . . . . . 2 . . . . Matter Decay 1 | . . . . . . . . . . . 1 . . . . Damage (core) 1 | . . . . . . . . . . . 1 . . . . Siege Activations . | . . . . . . . . . . . . . . . . Robots Corrupted 4 | 1 . . . . . 2 . 1 . . . . . . . Combat Hostiles 3 | . . . . . . 2 . 1 . . . . . . . Parts Fried 9 | 1 . . . . . 4 1 3 . . . . . . . Impact Corruptions . | . . . . . . . . . . . . . . . . Robots Melted . | . . . . . . . . . . . . . . . . Combat Hostiles . | . . . . . . . . . . . . . . . . Parts Melted 2 | . 1 . . . . . . . . . 1 . . . . Heat Transferred 3408 | . 100 . 37 . 481 100 . 50 457 . 1534 198 277 . 174 Parts Sabotaged . | . . . . . . . . . . . . . . . . Parts Stolen . | . . . . . . . . . . . . . . . . Parts Stripped . | . . . . . . . . . . . . . . . . Power Chain Reactions 9 | . 2 . . . . 2 2 1 1 . . . . . 1 Missiles Intercepted . | . . . . . . . . . . . . . . . . Alert | -11 -10 -9 -9 -9 -8 -8 -8 -8 -8 -7 -7 -7 -7 -6 -6 ------- Run | Scr Mat Mat Min Exi Min Mat Gar Mat Gar Fac Gar Fac Gar Fac Gar Peak Influence 773 | 15 173 306 217 . 215 302 475 471 743 389 773 424 413 231 161 Average Influence 296 | 5 107 175 92 . 107 192 303 367 562 389 617 289 262 218 132 Maximum Alert Level 3 | . . 1 1 . 1 1 2 2 3 1 3 2 2 1 . Low Security (%) 34 | 100 100 57 77 . 87 57 25 . . . . 8 26 . 100 Level 1 37 | . . 42 22 . 12 42 50 51 13 100 6 64 68 100 . Level 2 23 | . . . . . . . 23 48 60 . 74 26 4 . . Level 3 4 | . . . . . . . . . 25 . 18 . . . . Level 4 . | . . . . . . . . . . . . . . . . Level 5 . | . . . . . . . . . . . . . . . . High Security . | . . . . . . . . . . . . . . . . Max Security . | . . . . . . . . . . . . . . . . Squads Dispatched 12 | . 1 4 . . . 2 . 1 . . . 4 . . . Investigation 2 | . . 1 . . . . . 1 . . . . . . . Extermination 2 | . . . . . . . . . . . . 2 . . . Reinforcement 7 | . 1 3 . . . 1 . . . . . 2 . . . Assault . | . . . . . . . . . . . . . . . . Garrison 1 | . . . . . . 1 . . . . . . . . . Intercept . | . . . . . . . . . . . . . . . . Construction Impeded 1 | . . . . . . 1 . . . . . . . . . Haulers Reinforced . | . . . . . . . . . . . . . . . . Stealth | -11 -10 -9 -9 -9 -8 -8 -8 -8 -8 -7 -7 -7 -7 -6 -6 --------- Run | Scr Mat Mat Min Exi Min Mat Gar Mat Gar Fac Gar Fac Gar Fac Gar Distress Signals 6 | . . 2 . . . 1 . 2 . . . 1 . . . Communications Jammed . | . . . . . . . . . . . . . . . . Distress Signals . | . . . . . . . . . . . . . . . . Times Spotted 215 | . 8 24 11 . 23 24 8 22 19 . 22 18 19 3 14 Peak Tracking Total 12 | . 3 4 3 . 6 5 6 7 5 . 7 5 10 3 12 Tactical Retreats 28 | . . 5 . . 6 1 1 1 5 . 3 1 1 . 4 Traps | -11 -10 -9 -9 -9 -8 -8 -8 -8 -8 -7 -7 -7 -7 -6 -6 ------- Run | Scr Mat Mat Min Exi Min Mat Gar Mat Gar Fac Gar Fac Gar Fac Gar Traps Triggered 25 | . 1 1 . . . . 1 1 8 . 7 2 3 . 1 Indirectly . | . . . . . . . . . . . . . . . . Trap Hack Attempts . | . . . . . . . . . . . . . . . . Triggered . | . . . . . . . . . . . . . . . . Disarmed . | . . . . . . . . . . . . . . . . Reprogrammed . | . . . . . . . . . . . . . . . . Reused . | . . . . . . . . . . . . . . . . Traps Extracted . | . . . . . . . . . . . . . . . . Installed . | . . . . . . . . . . . . . . . . Triggered . | . . . . . . . . . . . . . . . . Exploded 3 | . . . . . . . 3 . . . . . . . . Machines | -11 -10 -9 -9 -9 -8 -8 -8 -8 -8 -7 -7 -7 -7 -6 -6 ---------- Run | Scr Mat Mat Min Exi Min Mat Gar Mat Gar Fac Gar Fac Gar Fac Gar Machines Disabled 14 | . 2 . . . . . 1 1 2 . 1 2 5 . . Max in Single Turn 2 | . 1 . . . . . 1 1 1 . 1 2 2 . . Garrison Relay 7 | . . . . . . . 1 . 2 . 1 . 3 . . Phase Generator 1 | . . . . . . . . . . . . . 1 . . Machines Sabotaged . | . . . . . . . . . . . . . . . . Garrisons Compromised . | . . . . . . . . . . . . . . . . Overloaded Fab Kills . | . . . . . . . . . . . . . . . . Fab Network Shutdowns . | . . . . . . . . . . . . . . . . Hacking | -11 -10 -9 -9 -9 -8 -8 -8 -8 -8 -7 -7 -7 -7 -6 -6 --------- Run | Scr Mat Mat Min Exi Min Mat Gar Mat Gar Fac Gar Fac Gar Fac Gar Machines Accessed 21 | . 4 1 1 1 . 4 . 3 . 2 . 4 . 1 . Terminals 14 | . 4 1 1 . . 3 . 2 . 1 . 2 . . . Fabricators . | . . . . . . . . . . . . . . . . Repair Stations . | . . . . . . . . . . . . . . . . Recycling Units . | . . . . . . . . . . . . . . . . Scanalyzers 1 | . . . . . . . . . . . . 1 . . . Garrison Access 5 | . . . . . . 1 . 1 . 1 . 1 . 1 . Total Hacks 73 | . 10 5 4 23 . 14 . 5 . 2 . 9 . 1 . Successful 51 | . 6 3 . 23 . 8 . 4 . 1 . 5 . 1 . Failed 22 | . 4 2 4 . . 6 . 1 . 1 . 4 . . . Catastrophic 2 | . . . 1 . . 1 . . . . . . . . . Database Lockouts . | . . . . . . . . . . . . . . . . Manual 41 | . 10 5 4 1 . 11 . 4 . 1 . 5 . . . Terminals 41 | . 10 5 4 . . 12 . 4 . 1 . 5 . . . Fabricators . | . . . . . . . . . . . . . . . . Repair Stations . | . . . . . . . . . . . . . . . . Recycling Units . | . . . . . . . . . . . . . . . . Scanalyzers 3 | . . . . . . . . . . . . 3 . . . Garrison Access 6 | . . . . . . 2 . 1 . 1 . 1 . 1 . Terminal Hacks 26 | . 1 . . 23 . 2 . . . . . . . . . Record 23 | . . . . 23 . . . . . . . . . . . Prototype ID Bank 1 | . . . . . . 1 . . . . . . . . . Terminal Index 2 | . 1 . . . . 1 . . . . . . . . . Fabricator Hacks . | . . . . . . . . . . . . . . . . Repair Station Hacks . | . . . . . . . . . . . . . . . . Recycling Unit Hacks . | . . . . . . . . . . . . . . . . Scanalyzer 2 | . . . . . . . . . . . . 2 . . . Insert Component 1 | . . . . . . . . . . . . 1 . . . Analyze 1 | . . . . . . . . . . . . 1 . . . Garrison Access Hacks 5 | . . . . . . 1 . 1 . 1 . 1 . 1 . Unlock Access 5 | . . . . . . 1 . 1 . 1 . 1 . 1 . Unauthorized Hacks 48 | . 13 8 . . . 13 . 7 . 1 . 6 . . . Terminals 18 | . 5 3 . . . 5 . 3 . . . 2 . . . Track 6 | . 2 1 . . . 1 . 1 . . . 1 . . . Botnet 9 | . 2 1 . . . 3 . 2 . . . 1 . . . Operators 3 | . 1 1 . . . 1 . . . . . . . . . Fabricators . | . . . . . . . . . . . . . . . . Repair Stations . | . . . . . . . . . . . . . . . . Recycling Units . | . . . . . . . . . . . . . . . . Scanalyzers . | . . . . . . . . . . . . . . . . Garrison Access . | . . . . . . . . . . . . . . . . Data Cores Recovered . | . . . . . . . . . . . . . . . . Used . | . . . . . . . . . . . . . . . . Hacking Detections 16 | . 4 1 1 . . 4 . 2 . 1 . 3 . . . Full Trace Events . | . . . . . . . . . . . . . . . . Feedback Events . | . . . . . . . . . . . . . . . . Feedback Blocked . | . . . . . . . . . . . . . . . . Robot Schematics Acquired . | . . . . . . . . . . . . . . . . Robots Built . | . . . . . . . . . . . . . . . . Matter . | . . . . . . . . . . . . . . . . Time . | . . . . . . . . . . . . . . . . Total Robot Build Rating . | . . . . . . . . . . . . . . . . Part Schematics Acquired 1 | . . . . . . . . . . . . 1 . . . Parts Built . | . . . . . . . . . . . . . . . . Matter . | . . . . . . . . . . . . . . . . Time . | . . . . . . . . . . . . . . . . Total Part Build Rating . | . . . . . . . . . . . . . . . . Parts Repaired . | . . . . . . . . . . . . . . . . Time . | . . . . . . . . . . . . . . . . Parts Recycled . | . . . . . . . . . . . . . . . . Recycled Matter . | . . . . . . . . . . . . . . . . Retrieved Matter . | . . . . . . . . . . . . . . . . Retrieved Components . | . . . . . . . . . . . . . . . . Parts Scanalyzed 1 | . . . . . . . . . . . . 1 . . . Part Schematics Acquired 1 | . . . . . . . . . . . . 1 . . . Parts Damaged . | . . . . . . . . . . . . . . . . Bothacking | -11 -10 -9 -9 -9 -8 -8 -8 -8 -8 -7 -7 -7 -7 -6 -6 ------------ Run | Scr Mat Mat Min Exi Min Mat Gar Mat Gar Fac Gar Fac Gar Fac Gar Used RIF Installer 4 | . . . . . . . 1 . 1 . 1 . 1 . . Robot Detection 1 | . . . . . . . . . . . . . 1 . . Patrol Navigation 1 | . . . . . . . . . 1 . . . . . . Autooverride 1 | . . . . . . . . . . . 1 . . . . Robots Hacked 16 | . . . . . . . . . . . . 5 11 . . Non-combat 2 | . . . . . . . . . . . . 2 . . . Combat 14 | . . . . . . . . . . . . 3 11 . . Autooverrided 3 | . . . . . . . . . . . . . 3 . . Robot Hacks Applied 14 | . . . . . . . . . . . . 6 8 . . map_route 2 | . . . . . . . . . . . . 2 . . . find_garrison 1 | . . . . . . . . . . . . 1 . . . scatter_targeting 1 | . . . . . . . . . . . . . 1 . . streamctrl_high 2 | . . . . . . . . . . . . 1 1 . . formatsys_high 8 | . . . . . . . . . . . . 2 6 . . Relay Couplers Released 31 | . . . . . . . 5 . 10 . 4 . 12 . . Machine Destruction 31 | . . . . . . . 5 . 10 . 4 . 12 . . Attached 12 | . . . . . . . . . . . . 3 6 . 3 Robots Rewired . | . . . . . . . . . . . . . . . . Allies Hacked . | . . . . . . . . . . . . . . . . Hacks Repelled . | . . . . . . . . . . . . . . . . Allies | -11 -10 -9 -9 -9 -8 -8 -8 -8 -8 -7 -7 -7 -7 -6 -6 -------- Run | Scr Mat Mat Min Exi Min Mat Gar Mat Gar Fac Gar Fac Gar Fac Gar Total Allies 18 | . . . 5 . . . . . . . . 3 10 . . Largest Group 3 | . . . 3 3 1 . . . . . . 2 3 . . Highest-Rated Group 65 | . . . 65 65 16 . . . . . . 24 60 . . Highest-Rated Ally 32 | . . . 31 31 16 . . . . . . 16 32 . . Total Orders . | . . . . . . . . . . . . . . . . Ally Attacks 93 | . . . 30 . 6 . . . . . . 28 29 . . Total Damage 1282 | . . . 413 . 93 . . . . . . 334 442 . . Kills 17 | . . . 9 . . . . . . . . 2 6 . . Allies Corrupted . | . . . . . . . . . . . . . . . . Allies Melted . | . . . . . . . . . . . . . . . . Intel | -11 -10 -9 -9 -9 -8 -8 -8 -8 -8 -7 -7 -7 -7 -6 -6 ------- Run | Scr Mat Mat Min Exi Min Mat Gar Mat Gar Fac Gar Fac Gar Fac Gar Robot Analysis Total . | . . . . . . . . . . . . . . . . Derelict Logs Recovered . | . . . . . . . . . . . . . . . . Drone Launches . | . . . . . . . . . . . . . . . . Drone Recoveries . | . . . . . . . . . . . . . . . . Exploration | -11 -10 -9 -9 -9 -8 -8 -8 -8 -8 -7 -7 -7 -7 -6 -6 ------------- Run | Scr Mat Mat Min Exi Min Mat Gar Mat Gar Fac Gar Fac Gar Fac Gar Turns Passed 10935 | 98 428 626 1196 433 766 726 417 647 1177 211 1106 1490 1370 63 181 Spaces Moved 5233 | 50 311 267 645 239 329 292 207 247 547 167 501 692 566 27 146 Core 142 | 8 . . . . . . . . . . . . 3 . 131 Treads 2938 | . . 125 645 239 329 154 47 20 261 . 466 552 100 . . Legs . | . . . . . . . . . . . . . . . . Wheels 1731 | 42 311 142 . . . 138 160 227 286 167 35 140 83 . . Hover 422 | . . . . . . . . . . . . . 380 27 15 Flight . | . . . . . . . . . . . . . . . . Fastest Speed 50 | 50 80 100 180 180 180 110 130 130 130 120 120 130 130 236 50 Average Speed 166 | 76 102 138 180 180 180 170 159 143 174 120 175 170 218 236 86 Slowest Speed 1700 | 90 110 180 180 180 180 260 260 200 280 120 200 200 1700 236 1350 Overloaded Moves . | . . . . . . . . . . . . . . . . Propulsion Burnouts . | . . . . . . . . . . . . . . . . Robots Hopped . | . . . . . . . . . . . . . . . . Cave-ins Triggered . | . . . . . . . . . . . . . . . . Exploration Rate (%) 42 | 5 66 24 99 49 64 26 43 34 60 4 60 21 79 2 37 Regions Visited 15 Branch Regions 3 Pre-discovered Areas 1 | . . . . 1 . . . . . . . . . . . Known Exits Taken 5 | . . . . . . 1 . 1 . 1 . 1 . 1 . Unknown Exits Taken 6 | 1 1 1 1 1 1 . . . . . . . . . . Scrap Searched 3 | . . . 1 . 2 . . . . . . . . . . Spaces Dug 4 | . . . . . . 4 . . . . . . . . . Terrain Destroyed 228 | . 3 . . . . 11 12 6 64 . 29 18 83 . 2 Melee . | . . . . . . . . . . . . . . . . Projectile 5 | . . . . . . 4 . . 1 . . . . . . AOE 223 | . 3 . . . . 7 12 6 63 . 29 18 83 . 2 Actions | -11 -10 -9 -9 -9 -8 -8 -8 -8 -8 -7 -7 -7 -7 -6 -6 --------- Run | Scr Mat Mat Min Exi Min Mat Gar Mat Gar Fac Gar Fac Gar Fac Gar Total 6748 | 91 390 424 673 242 409 438 263 441 725 182 644 928 673 27 198 Wait 602 | 3 37 83 2 . 24 72 17 103 71 . 64 110 12 . 4 Move 5214 | 49 310 266 644 238 328 291 205 246 545 166 499 691 564 26 146 Hop . | . . . . . . . . . . . . . . . . Pick Up 164 | 13 10 15 10 3 6 11 4 16 13 7 8 28 16 . 4 Fast Attach . | . . . . . . . . . . . . . . . . Attach 89 | 6 3 8 1 . 4 7 3 6 2 1 10 15 15 1 7 Detach 6 | . . . . . . . . . . . . 4 1 . 1 Swap 64 | 1 4 2 4 1 . 6 2 6 7 1 8 19 2 . 1 Drop 88 | 1 2 . 7 . . 6 4 5 10 7 . 17 10 . 19 Fire 404 | 18 17 50 4 . 47 45 20 59 37 . 45 23 32 . 7 Melee 33 | . 7 . . . . . . . . . . 21 5 . . Ram . | . . . . . . . . . . . . . . . . Kick . | . . . . . . . . . . . . . . . . Crush 4 | . . . 1 . . . . . . . . . 3 . . Escape Stasis 80 | . . . . . . . 8 . 40 . 10 . 13 . 9 Rewire . | . . . . . . . . . . . . . . . . Trap . | . . . . . . . . . . . . . . . . Miscellaneous . | . . . . . . . . . . . . . . . . Route ------- -11/Scrapyard -10/Materials (discovered 3 exits: *Mat x2 / [*Min]) -9/Materials -9/Mines (discovered 3 exits: *Mat x2 / *Exi) -9/Exiles -8/Mines -8/Materials (discovered 2 exits: [*Sto] / Gar) -8/Garrison -8/Materials (discovered 2 exits: [*Sto] / Gar) -8/Garrison (discovered 2 exits: *Fac x2) -7/Factory -7/Garrison (discovered 3 exits: *Fac x3) -7/Factory -7/Garrison (discovered 3 exits: *Fac x3) -6/Factory -6/Garrison History --------- Turn | Location | Event 18 | -11/Scrapyard | Discovered new exit (range 16) 99 | -11/Scrapyard | Entered Materials 244 | -10/Materials | Discovered new exit (range 14) 337 | -10/Materials | Discovered new exit (range 12) 429 | -10/Materials | Discovered new exit (range 16) 527 | -10/Materials | Entered another Materials area 527 | -9/Materials | Evolved 2 slots: Propulsion x1, Utility x1 548 | -9/Materials | Build established: Hauler-Mutant 772 | -9/Materials | Lost 3 parts (1p1n1u) 1144 | -9/Materials | Discovered new exit (range 6) 1153 | -9/Materials | Entered Mines 1166 | -9/Mines | Assisted by bots powering up and referring to "LRC-V3" 1273 | -9/Mines | Joined a pair of Derelicts in attacking an 0b10 outpost 1435 | -9/Mines | Assembled infested the area 1514 | -9/Mines | Discovered new exit (range 8) 1791 | -9/Mines | Discovered new exit (range 11) 2342 | -9/Mines | Deemed a non-threat by the Exiles lab entrance 2342 | -9/Mines | Discovered new exit (range 5) 2349 | -9/Mines | Entered Exiles 2349 | -9/Exiles | Accompanied by 3 allies 2379 | -9/Exiles | Led the pair of lost Derelicts to a safe place 2398 | -9/Exiles | Met 8R-AWN 2476 | -9/Exiles | Met EX-HEX 2556 | -9/Exiles | Met EX-DEC 2631 | -9/Exiles | Learned location of Zion (-6) 2759 | -9/Exiles | Discovered new exit (range 15) 2782 | -9/Exiles | Entered Mines 2782 | -8/Mines | Accompanied by 1 ally 3069 | -8/Mines | Lost 3 parts (1p2w) 3282 | -8/Mines | Core integrity fell below 50% 3438 | -8/Mines | Discovered new exit (range 5) 3548 | -8/Mines | Entered Materials 3548 | -8/Materials | Evolved 2 slots: Propulsion x1, Utility x1 3802 | -8/Materials | Discovered new exit (range 16) 3956 | -8/Materials | Build established: Scavenger-Mutant 3998 | -8/Materials | Destroyed 10 combat bots 4222 | -8/Materials | Garrison activated, responded to threat 4272 | -8/Materials | Identified exit to Garrison 4274 | -8/Materials | Entered Garrison 4279 | -8/Garrison | Lost 3 parts (1p2n) 4427 | -8/Garrison | Triggered checkpoint 4502 | -8/Garrison | Discovered new exit (range 11) 4505 | -8/Garrison | Build established: Hauler-Mutant 4527 | -8/Garrison | Installed Relay Interface Framework 4556 | -8/Garrison | Triggered checkpoint 4638 | -8/Garrison | Garrison Relay disabled 4691 | -8/Garrison | Entered Materials 4783 | -8/Materials | Discovered new exit (range 15) 5284 | -8/Materials | Identified exit to Garrison 5338 | -8/Materials | Entered Garrison 5391 | -8/Garrison | Triggered checkpoint 5402 | -8/Garrison | Triggered checkpoint 5572 | -8/Garrison | Discovered new exit (range 14) 5852 | -8/Garrison | Discovered new exit (range 13) 5900 | -8/Garrison | Expanded RIF knowledge: Patrol Navigation 5982 | -8/Garrison | Triggered checkpoint 6028 | -8/Garrison | Garrison Relay disabled 6148 | -8/Garrison | Triggered checkpoint 6170 | -8/Garrison | Core integrity fell below 50% 6210 | -8/Garrison | Garrison Relay disabled 6515 | -8/Garrison | Entered Factory 6515 | -7/Factory | Evolved 2 slots: Utility x2 6724 | -7/Factory | Identified exit to Garrison 6726 | -7/Factory | Entered Garrison 6783 | -7/Garrison | Triggered checkpoint 6828 | -7/Garrison | Destroyed 8 combat bots 6854 | -7/Garrison | Triggered checkpoint 6871 | -7/Garrison | Build established: Bothacker-Mutant 6902 | -7/Garrison | Discovered new exit (range 10) 7061 | -7/Garrison | Discovered new exit (range 13) 7204 | -7/Garrison | Triggered checkpoint 7224 | -7/Garrison | Triggered checkpoint 7276 | -7/Garrison | Lost 4 parts (1p1n1u1w) 7356 | -7/Garrison | Triggered checkpoint 7452 | -7/Garrison | Lost 4 parts (1p1n1u1w) 7469 | -7/Garrison | Discovered new exit (range 14) 7508 | -7/Garrison | Expanded RIF knowledge: Autooverride 7622 | -7/Garrison | Garrison Relay disabled 7648 | -7/Garrison | Triggered checkpoint 7832 | -7/Garrison | Entered Factory 8550 | -7/Factory | Lost 3 parts (2n1w) 9320 | -7/Factory | Identified exit to Garrison 9322 | -7/Factory | Entered Garrison 9331 | -7/Garrison | Expanded RIF knowledge: Robot Detection 9388 | -7/Garrison | Triggered checkpoint 9392 | -7/Garrison | Core integrity fell below 50% 9560 | -7/Garrison | Triggered checkpoint 9582 | -7/Garrison | Spotted B-75 Beast 9582 | -7/Garrison | Spotted B-75 Beast 9614 | -7/Garrison | Triggered checkpoint 9697 | -7/Garrison | Lost 7 parts (1p4n2w) 9778 | -7/Garrison | Triggered checkpoint 9900 | -7/Garrison | Garrison Relay disabled 10000 | -7/Garrison | Discovered new exit (range 15) 10065 | -7/Garrison | Phase Generator disabled 10066 | -7/Garrison | Core integrity fell below 20% 10208 | -7/Garrison | Build established: Botlord-Mutant 10330 | -7/Garrison | Discovered new exit (range 10) 10434 | -7/Garrison | Garrison Relay disabled 10570 | -7/Garrison | Triggered checkpoint 10624 | -7/Garrison | Garrison Relay disabled 10664 | -7/Garrison | Discovered new exit (range 10) 10692 | -7/Garrison | Entered Factory 10692 | -6/Factory | Evolved 2 slots: Power x1, Propulsion x1 10745 | -6/Factory | Identified exit to Garrison 10755 | -6/Factory | Entered Garrison 10812 | -6/Garrison | Triggered checkpoint 10876 | -6/Garrison | Lost 4 parts (1p3w) 10878 | -6/Garrison | Triggered checkpoint 10890 | -6/Garrison | Core integrity fell below 50% 10914 | -6/Garrison | Core integrity fell below 20% 10916 | -6/Garrison | Triggered checkpoint 10936 | -6/Garrison | Destroyed by S-27 Virus with Autogun Last Messages --------------- 10890_ Acquired Relay Coupler [Grunt]. 10893_ Remote Datajack destroyed. 10893_ Relay Coupler [Grunt] destroyed. 10897_ Relay Coupler [Sentry] destroyed. 10916_ Beams of light sweep through the air. An alarm sounds. 10922_ Triggered Stasis Trap. 10922_ A bubble of rippling energy engulfs the area. 10922_ Field strength at 94. 10923_ Field strength at 88. 10924_ Field strength at 82. 10925_ Field strength at 71. 10926_ Field strength at 65. 10927_ Relay Coupler [Grunt] destroyed. 10927_ Field strength at 54. 10928_ Field strength at 39. 10929_ Field strength at 26. 10930_ Field strength at 20. 10931_ Relay Coupler [ARC] destroyed. 10931_ Field strength at 5. 10932_ Stasis field depleted. Map ----- +----------------------------------------------------+ | #???????????????????????? | | #???????????????????????? | | # ## ## ##########????????????????????????? | | # ## ## ###???????????????????????????????? | | " #???????????????????????????????? | | " #???????????????????????????????? | | " #???????????????????????????????? | | " ????????????????????????????????? | | # ## ## #?????????????????????????????????? | | # ## ## ############??????????????????????? | | #??????????????????????? | | #??????????????????????? | | #??????????????????????? | | ######""""############# #??????????????????????? | | ??????????????????????#ss #??????????????????????? | | ?????????????????# #### #??????????????????????? | | ??????????????????? +^ ^#??????????????????????? | | ??????????????????????#s #??????????????????????? | | ??????????????????????# #??????????????????????? | | ??????????????????????# ######### ##??????????? | | ??????????????????????# ???????? | | ??????????????????????# ???????? | | ??????????????????????# ############???????????? | | ??????????????????????# #??????????????????????? | | ??????????????????????# #??????????????????????? | | ??????????????????????# @#??????????????????????? | | ??????????????????????# #??????????????????????? | | ??????????????????????# #??????????????????????? | | ??????????????????????# #??????????????????????? | | ??????????????????????# #??????????????????????? | | ??????????????????????" #??????????????????????? | | ??????????????????????" #??????????????????????? | | ??????????????????????" #??????????????????????? | | ??????????????????????# #??????????????????????? | | ??????????????????????# ???????????????????????? | | ??????????????????????# ???????????????????????? | | ??????????????????????# ???????????????????????? | | ??????????????????????# ???????????????????????? | | ??????????????????????# ???????????????????????? | | ??????????????????????# ???????????????????????? | | ??????????????????????? ???????????????????????? | | ?????????????????????????????????????????????????? | | ?????????????????????????????????????????????????? | | ?????????????????????????????????????????????????? | | ?????????????????????????????????????????????????? | | ?????????????????????????????????????????????????? | | ?????????????????????????????????????????????????? | | ?????????????????????????????????????????????????? | | ?????????????????????????????????????????????????? | | ?????????????????????????????????????????????????? | +----------------------------------------------------+ Best States ------------- Heat Dissipation 37 Energy Generation 23 Energy Capacity 290 Matter Stores 300 Matter Capacity 300 Sight Range 16 Robot Scan Range 16 Terrain Scan Density 10 Armor Coverage 750 Resistance: KI 20 Evasion (%) 50 Recoil Reduction 4 Item Schematics ----------------- Hacking Suite | -7/Factory | Scanalyzed Robot Schematics ------------------ None Fabricated ------------ Nothing Alien Tech Used ----------------- None Achievements -------------- None Challenges ------------ None Game ------ Seed MatterAntigravLog Manual? 0 Play Time 01:08:24 Cumulative 200.7 hours Start 2019.11.28 @ 00:45:36 End 2019.11.28 @ 01:51:57 Sessions 1 Manual Loads 0 Difficulty Rogue Special Mode None Game No. 274 Rogue 274 Adventurer 0 Explorer 0 Win Type - Total 2 Types 1/0/0/1/0/0/0 Lore% 52 Gallery% 74 Achievement% 52 Wizard Run 0 Options --------- ASCII 0 Keyboard 0 Movement Numpad Keybinds 0 Fullscreen 1 Font 16/Terminus Map View 75x55 Tactical HUD 1 Map Filters NONE Filters NONE Steam 1 RUN: 033b5957-089c-477d-885f-dbcfaa8eeba2